[Event "Titled Tuesday Blitz August 1 Late 2023"]
[White "Womacka, Mathias"]
[Black "Uzcategui Rodriguez, Alejandro"]
[WhiteFideId "4611390"]
[BlackFideId "3903400"]
[WhiteElo "2521"]
[BlackElo "2396"]
[Result "1/2-1/2"]
[Round "11"]
[TimeControl "180+1"]
[Date "2023.08.01"]
[WhiteClock "0:00:11"]
[BlackClock "0:00:05"]
[Board "72"]

1. e4 {[%clk 0:02:58]}  e6 {[%clk 0:02:59]} 2. d4 {[%clk 0:02:55]}  d5 {[%clk 0:02:59]} 3. Nd2 {[%clk 0:02:54]}  Nf6 {[%clk 0:02:59]} 4. e5 {[%clk 0:02:54]}  Nfd7 {[%clk 0:02:59]} 5. Bd3 {[%clk 0:02:55]}  c5 {[%clk 0:03:00]} 6. c3 {[%clk 0:02:55]}  Nc6 {[%clk 0:03:00]} 7. Ne2 {[%clk 0:02:55]}  cxd4 {[%clk 0:03:01]} 8. cxd4 {[%clk 0:02:56]}  f6 {[%clk 0:03:01]} 9. exf6 {[%clk 0:02:55]}  Nxf6 {[%clk 0:03:02]} 10. Nf3 {[%clk 0:02:55]}  Bd6 {[%clk 0:03:02]} 11. O-O {[%clk 0:02:54]}  Qc7 {[%clk 0:03:03]} 12. Nc3 {[%clk 0:02:52]}  a6 {[%clk 0:03:01]} 13. Bd2 {[%clk 0:02:52]}  O-O {[%clk 0:02:59]} 14. Rc1 {[%clk 0:02:51]}  Bd7 {[%clk 0:02:30]} 15. Re1 {[%clk 0:02:52]}  Ng4 {[%clk 0:02:29]} 16. g3 {[%clk 0:02:46]}  Nxf2 {[%clk 0:02:15]} 17. Kxf2 {[%clk 0:02:44]}  Nxd4 {[%clk 0:02:15]} 18. Nxd5 {[%clk 0:02:17]}  Qd8 {[%clk 0:02:09]} 19. Nf4 {[%clk 0:01:58]}  Nxf3 {[%clk 0:01:29]} 20. Qxf3 {[%clk 0:01:59]}  Bc6 {[%clk 0:01:23]} 21. Qh5 {[%clk 0:01:38]}  Bxf4 {[%clk 0:00:46]} 22. Qxh7+ {[%clk 0:01:16]}  Kf7 {[%clk 0:00:46]} 23. Bxf4 {[%clk 0:01:16]}  Qd4+ {[%clk 0:00:36]} 24. Re3 {[%clk 0:01:04]}  Qxb2+ {[%clk 0:00:32]} 25. Rc2 {[%clk 0:01:03]}  Qf6 {[%clk 0:00:32]} 26. Be4 {[%clk 0:00:46]}  Rh8 {[%clk 0:00:24]} 27. Qg6+ {[%clk 0:00:39]}  Qxg6 {[%clk 0:00:25]} 28. Bxg6+ {[%clk 0:00:39]}  Kxg6 {[%clk 0:00:25]} 29. h4 {[%clk 0:00:34]}  Kf7 {[%clk 0:00:21]} 30. Bg5 {[%clk 0:00:25]}  Rac8 {[%clk 0:00:20]} 31. Rd2 {[%clk 0:00:23]}  Bd5 {[%clk 0:00:20]} 32. g4 {[%clk 0:00:22]}  Rc4 {[%clk 0:00:19]} 33. Kg3 {[%clk 0:00:22]}  Rhc8 {[%clk 0:00:18]} 34. h5 {[%clk 0:00:20]}  Ra4 {[%clk 0:00:18]} 35. a3 {[%clk 0:00:17]}  Rcc4 {[%clk 0:00:18]} 36. Rf2+ {[%clk 0:00:16]}  Kg8 {[%clk 0:00:15]} 37. Rf4 {[%clk 0:00:16]}  Rxf4 {[%clk 0:00:10]} 38. Bxf4 {[%clk 0:00:17]}  Re4 {[%clk 0:00:09]} 39. Rxe4 {[%clk 0:00:16]}  Bxe4 {[%clk 0:00:10]} 40. Be5 {[%clk 0:00:16]}  b5 {[%clk 0:00:06]} 41. Bc3 {[%clk 0:00:15]}  Bc2 {[%clk 0:00:04]} 42. Kf4 {[%clk 0:00:15]}  Kh7 {[%clk 0:00:05]} 43. Ke5 {[%clk 0:00:13]}  Bd1 {[%clk 0:00:04]} 44. Kf4 {[%clk 0:00:12]}  Kg8 {[%clk 0:00:04]} 45. Kg5 {[%clk 0:00:11]}  Kf7 {[%clk 0:00:04]} 46. Kf4 {[%clk 0:00:11]}  Kg8 {[%clk 0:00:04]} 47. Kg5 {[%clk 0:00:11]}  Kf7 {[%clk 0:00:04]} 48. Kf4 {[%clk 0:00:11]}  Kg8 {[%clk 0:00:05]} 1/2-1/2


[Site "https://www.chess.com"]

[Event "Titled Tuesday Blitz August 1 Late 2023"]
[White "Rottenwohrer Suarez, Juan"]
[Black "AndresDelgado77"]
[WhiteFideId "32068182"]
[WhiteElo "2488"]
[BlackElo "2365"]
[Result "1-0"]
[Round "11"]
[TimeControl "180+1"]
[Date "2023.08.01"]
[WhiteClock "0:00:06"]
[BlackClock "0:00:00"]
[Board "75"]

1. e4 {[%clk 0:03:00]}  e6 {[%clk 0:02:58]} 2. Nf3 {[%clk 0:02:58]}  d5 {[%clk 0:02:58]} 3. d3 {[%clk 0:02:59]}  Nf6 {[%clk 0:02:57]} 4. Nbd2 {[%clk 0:02:59]}  Nc6 {[%clk 0:02:56]} 5. g3 {[%clk 0:02:59]}  Bc5 {[%clk 0:02:54]} 6. Bg2 {[%clk 0:02:59]}  dxe4 {[%clk 0:02:54]} 7. dxe4 {[%clk 0:02:58]}  b6 {[%clk 0:02:54]} 8. O-O {[%clk 0:02:58]}  Ba6 {[%clk 0:02:54]} 9. c4 {[%clk 0:02:42]}  Qd7 {[%clk 0:02:51]} 10. b3 {[%clk 0:02:26]}  O-O-O {[%clk 0:02:49]} 11. Bb2 {[%clk 0:02:26]}  Nd4 {[%clk 0:02:15]} 12. e5 {[%clk 0:02:14]}  Ng4 {[%clk 0:02:00]} 13. b4 {[%clk 0:01:55]}  Nxf3+ {[%clk 0:01:47]} 14. Qxf3 {[%clk 0:01:54]}  Qxd2 {[%clk 0:01:40]} 15. bxc5 {[%clk 0:01:23]}  Qxb2 {[%clk 0:01:06]} 16. Qxg4 {[%clk 0:01:00]}  Qxe5 {[%clk 0:00:46]} 17. cxb6 {[%clk 0:01:00]}  cxb6 {[%clk 0:00:27]} 18. Rfe1 {[%clk 0:00:58]}  Qc7 {[%clk 0:00:20]} 19. Qxg7 {[%clk 0:00:53]}  Bxc4 {[%clk 0:00:19]} 20. Rac1 {[%clk 0:00:51]}  b5 {[%clk 0:00:19]} 21. a4 {[%clk 0:00:52]}  a6 {[%clk 0:00:17]} 22. axb5 {[%clk 0:00:52]}  axb5 {[%clk 0:00:16]} 23. Bf1 {[%clk 0:00:43]}  Kb8 {[%clk 0:00:12]} 24. Qc3 {[%clk 0:00:31]}  Rc8 {[%clk 0:00:10]} 25. Qb2 {[%clk 0:00:21]}  Qb7 {[%clk 0:00:09]} 26. Bg2 {[%clk 0:00:13]}  Bd5 {[%clk 0:00:08]} 27. Bxd5 {[%clk 0:00:07]}  Qxd5 {[%clk 0:00:07]} 28. Rcd1 {[%clk 0:00:07]}  Qc5 {[%clk 0:00:05]} 29. Re5 {[%clk 0:00:07]}  Qc6 {[%clk 0:00:04]} 30. Rxb5+ {[%clk 0:00:07]}  Kc7 {[%clk 0:00:04]} 31. Rc1 {[%clk 0:00:06]}  Kd7 {[%clk 0:00:03]} 32. Rxc6 {[%clk 0:00:06]}  Rxc6 {[%clk 0:00:03]} 33. Qxh8 {[%clk 0:00:05]}  Rc1+ {[%clk 0:00:00]} 34. Kg2 {[%clk 0:00:06]} 1-0


[Site "https://www.chess.com"]

[Event "Titled Tuesday Blitz August 1 Late 2023"]
[White "Nanu, Costica-Ciprian"]
[Black "Ardila, Oscar Humberto"]
[WhiteFideId "1204580"]
[BlackFideId "4404742"]
[WhiteElo "2475"]
[BlackElo "2329"]
[Result "1-0"]
[Round "11"]
[TimeControl "180+1"]
[Date "2023.08.01"]
[WhiteClock "0:00:13"]
[BlackClock "0:00:17"]
[Board "76"]

1. e4 {[%clk 0:03:00]}  e5 {[%clk 0:02:57]} 2. Nf3 {[%clk 0:03:01]}  Nf6 {[%clk 0:02:57]} 3. Nxe5 {[%clk 0:03:00]}  d6 {[%clk 0:02:57]} 4. Nf3 {[%clk 0:03:00]}  Nxe4 {[%clk 0:02:57]} 5. d4 {[%clk 0:03:01]}  d5 {[%clk 0:02:57]} 6. Bd3 {[%clk 0:03:01]}  Be7 {[%clk 0:02:58]} 7. O-O {[%clk 0:03:02]}  Nc6 {[%clk 0:02:56]} 8. c4 {[%clk 0:03:00]}  Nb4 {[%clk 0:02:57]} 9. Be2 {[%clk 0:03:00]}  O-O {[%clk 0:02:55]} 10. Nc3 {[%clk 0:03:00]}  Nxc3 {[%clk 0:02:47]} 11. bxc3 {[%clk 0:03:00]}  Nc6 {[%clk 0:02:47]} 12. a4 {[%clk 0:02:59]}  Bf5 {[%clk 0:02:45]} 13. Ra2 {[%clk 0:02:56]}  Bf6 {[%clk 0:02:42]} 14. Rb2 {[%clk 0:02:53]}  b6 {[%clk 0:02:41]} 15. Bf4 {[%clk 0:02:29]}  dxc4 {[%clk 0:02:37]} 16. Bxc4 {[%clk 0:02:29]}  Na5 {[%clk 0:02:36]} 17. Ba2 {[%clk 0:02:26]}  Rc8 {[%clk 0:02:33]} 18. Ne5 {[%clk 0:02:26]}  c5 {[%clk 0:02:31]} 19. Rd2 {[%clk 0:02:16]}  c4 {[%clk 0:02:25]} 20. Re1 {[%clk 0:02:11]}  Re8 {[%clk 0:02:22]} 21. h3 {[%clk 0:02:00]}  Qd5 {[%clk 0:02:20]} 22. Rde2 {[%clk 0:01:51]}  Bxe5 {[%clk 0:02:08]} 23. Rxe5 {[%clk 0:01:49]}  Rxe5 {[%clk 0:02:08]} 24. Rxe5 {[%clk 0:01:50]}  Qd7 {[%clk 0:02:09]} 25. Qe2 {[%clk 0:01:46]}  Bd3 {[%clk 0:01:33]} 26. Re7 {[%clk 0:01:12]}  Qxa4 {[%clk 0:01:19]} 27. Qg4 {[%clk 0:01:12]}  Rf8 {[%clk 0:00:55]} 28. Be5 {[%clk 0:01:03]}  Bg6 {[%clk 0:00:55]} 29. Bb1 {[%clk 0:01:03]}  Qa1 {[%clk 0:00:53]} 30. Kh2 {[%clk 0:00:25]}  Qxb1 {[%clk 0:00:50]} 31. Qd7 {[%clk 0:00:25]}  Qf5 {[%clk 0:00:41]} 32. Qc7 {[%clk 0:00:20]}  Qc8 {[%clk 0:00:37]} 33. Qd6 {[%clk 0:00:17]}  Nc6 {[%clk 0:00:31]} 34. Rc7 {[%clk 0:00:16]}  Qe6 {[%clk 0:00:18]} 35. Qxe6 {[%clk 0:00:12]}  fxe6 {[%clk 0:00:18]} 36. Rxg7+ {[%clk 0:00:12]}  Kh8 {[%clk 0:00:18]} 37. Rxg6+ {[%clk 0:00:13]}  Rf6 {[%clk 0:00:17]} 38. Bxf6# {[%clk 0:00:13]} 1-0


[Site "https://www.chess.com"]

[Event "Titled Tuesday Blitz August 1 Late 2023"]
[White "D`Arruda, Ricardo D."]
[Black "Sala, Giulia"]
[WhiteFideId "100692"]
[BlackFideId "2840451"]
[WhiteElo "2457"]
[BlackElo "2300"]
[Result "1-0"]
[Round "11"]
[TimeControl "180+1"]
[Date "2023.08.01"]
[WhiteClock "0:01:52"]
[BlackClock "0:02:06"]
[Board "77"]

1. Nf3 {[%clk 0:03:00]}  e6 {[%clk 0:02:57]} 2. d4 {[%clk 0:03:00]}  Nf6 {[%clk 0:02:57]} 3. Nc3 {[%clk 0:03:00]}  d5 {[%clk 0:02:57]} 4. Bg5 {[%clk 0:02:59]}  Be7 {[%clk 0:02:57]} 5. Bxf6 {[%clk 0:02:59]}  Bxf6 {[%clk 0:02:57]} 6. e4 {[%clk 0:03:00]}  dxe4 {[%clk 0:02:55]} 7. Nxe4 {[%clk 0:03:00]}  Nc6 {[%clk 0:02:55]} 8. Nxf6+ {[%clk 0:02:59]}  gxf6 {[%clk 0:02:56]} 9. c3 {[%clk 0:02:58]}  b6 {[%clk 0:02:53]} 10. Bd3 {[%clk 0:02:58]}  Bb7 {[%clk 0:02:54]} 11. Qe2 {[%clk 0:02:57]}  f5 {[%clk 0:02:54]} 12. Bxf5 {[%clk 0:02:55]}  Qf6 {[%clk 0:02:46]} 13. Be4 {[%clk 0:02:54]}  O-O-O {[%clk 0:02:46]} 14. O-O-O {[%clk 0:02:49]}  Rhg8 {[%clk 0:02:45]} 15. g3 {[%clk 0:02:46]}  Rg4 {[%clk 0:02:42]} 16. Nd2 {[%clk 0:02:35]}  Qh6 {[%clk 0:02:33]} 17. Bxc6 {[%clk 0:02:24]}  Bxc6 {[%clk 0:02:25]} 18. Qxg4 {[%clk 0:02:24]}  Bxh1 {[%clk 0:02:23]} 19. Rxh1 {[%clk 0:02:25]}  c5 {[%clk 0:02:22]} 20. Qf4 {[%clk 0:02:23]}  Qxf4 {[%clk 0:02:21]} 21. gxf4 {[%clk 0:02:24]}  cxd4 {[%clk 0:02:21]} 22. Nf3 {[%clk 0:02:17]}  dxc3 {[%clk 0:02:21]} 23. bxc3 {[%clk 0:02:17]}  Rd3 {[%clk 0:02:22]} 24. Ne5 {[%clk 0:02:16]}  Rxc3+ {[%clk 0:02:22]} 25. Kb2 {[%clk 0:02:14]}  Rh3 {[%clk 0:02:22]} 26. Nxf7 {[%clk 0:02:09]}  Rf3 {[%clk 0:02:21]} 27. Rf1 {[%clk 0:02:06]}  Rxf4 {[%clk 0:02:19]} 28. Ng5 {[%clk 0:02:06]}  Rh4 {[%clk 0:02:16]} 29. Nxe6 {[%clk 0:02:04]}  Rxh2 {[%clk 0:02:16]} 30. Kc3 {[%clk 0:02:01]}  Kd7 {[%clk 0:02:14]} 31. Nd4 {[%clk 0:02:01]}  h5 {[%clk 0:02:13]} 32. a4 {[%clk 0:01:59]}  h4 {[%clk 0:02:13]} 33. f4 {[%clk 0:01:59]}  h3 {[%clk 0:02:12]} 34. f5 {[%clk 0:01:59]}  Ke7 {[%clk 0:02:11]} 35. f6+ {[%clk 0:01:58]}  Kf7 {[%clk 0:02:12]} 36. Nf3 {[%clk 0:01:54]}  Ra2 {[%clk 0:02:09]} 37. Ng5+ {[%clk 0:01:52]}  Kf8 {[%clk 0:02:09]} 38. f7 {[%clk 0:01:52]}  Re2 {[%clk 0:02:06]} 39. Nh7+ {[%clk 0:01:52]} 1-0


[Site "https://www.chess.com"]

[Event "Titled Tuesday Blitz August 1 Late 2023"]
[White "Harriott, Tyrell"]
[Black "Elissalt Cardenas, Hector"]
[WhiteFideId "2086484"]
[BlackFideId "3500632"]
[WhiteElo "2441"]
[BlackElo "2352"]
[Result "0-1"]
[Round "11"]
[TimeControl "180+1"]
[Date "2023.08.01"]
[WhiteClock "0:00:07"]
[BlackClock "0:00:31"]
[Board "80"]

1. d4 {[%clk 0:02:55]}  d5 {[%clk 0:02:58]} 2. e3 {[%clk 0:02:54]}  Nf6 {[%clk 0:02:56]} 3. Bd3 {[%clk 0:02:53]}  e6 {[%clk 0:02:53]} 4. f4 {[%clk 0:02:53]}  b6 {[%clk 0:02:52]} 5. c3 {[%clk 0:02:51]}  Bb7 {[%clk 0:02:52]} 6. Nd2 {[%clk 0:02:50]}  Be7 {[%clk 0:02:52]} 7. Ngf3 {[%clk 0:02:50]}  O-O {[%clk 0:02:48]} 8. O-O {[%clk 0:02:50]}  Ne4 {[%clk 0:02:48]} 9. Ne5 {[%clk 0:02:42]}  f5 {[%clk 0:02:47]} 10. g4 {[%clk 0:02:41]}  Nd7 {[%clk 0:02:45]} 11. gxf5 {[%clk 0:02:38]}  exf5 {[%clk 0:02:45]} 12. Qh5 {[%clk 0:02:30]}  Rf6 {[%clk 0:02:24]} 13. Nxe4 {[%clk 0:02:09]}  fxe4 {[%clk 0:02:12]} 14. Bb5 {[%clk 0:02:06]}  Nxe5 {[%clk 0:02:08]} 15. fxe5 {[%clk 0:01:49]}  Rxf1+ {[%clk 0:01:57]} 16. Bxf1 {[%clk 0:01:47]}  Bc8 {[%clk 0:01:53]} 17. c4 {[%clk 0:01:37]}  c6 {[%clk 0:01:53]} 18. cxd5 {[%clk 0:01:36]}  cxd5 {[%clk 0:01:52]} 19. Bd2 {[%clk 0:01:36]}  Be6 {[%clk 0:01:49]} 20. Ba6 {[%clk 0:01:30]}  Qd7 {[%clk 0:01:44]} 21. Qe2 {[%clk 0:01:17]}  Qe8 {[%clk 0:01:30]} 22. Be1 {[%clk 0:01:12]}  Qg6+ {[%clk 0:01:27]} 23. Bg3 {[%clk 0:01:11]}  h5 {[%clk 0:01:26]} 24. Kh1 {[%clk 0:01:11]}  Bg4 {[%clk 0:01:23]} 25. Qb5 {[%clk 0:01:02]}  Rd8 {[%clk 0:01:19]} 26. Rf1 {[%clk 0:00:54]}  Bf3+ {[%clk 0:01:18]} 27. Rxf3 {[%clk 0:00:54]}  exf3 {[%clk 0:01:18]} 28. Qf1 {[%clk 0:00:50]}  Qe4 {[%clk 0:01:15]} 29. Bf2 {[%clk 0:00:41]}  Qg4 {[%clk 0:01:09]} 30. h3 {[%clk 0:00:38]}  Qg5 {[%clk 0:00:59]} 31. Bg1 {[%clk 0:00:32]}  Rf8 {[%clk 0:00:58]} 32. Bf2 {[%clk 0:00:31]}  Bb4 {[%clk 0:00:48]} 33. Bb7 {[%clk 0:00:28]}  Bd2 {[%clk 0:00:41]} 34. Bxd5+ {[%clk 0:00:28]}  Kh8 {[%clk 0:00:40]} 35. e4 {[%clk 0:00:25]}  Be3 {[%clk 0:00:39]} 36. Bb3 {[%clk 0:00:16]}  Rc8 {[%clk 0:00:34]} 37. Bxe3 {[%clk 0:00:14]}  Qxe3 {[%clk 0:00:34]} 38. Bc4 {[%clk 0:00:11]}  Rxc4 {[%clk 0:00:31]} 39. Qxc4 {[%clk 0:00:10]}  Qe1+ {[%clk 0:00:31]} 40. Kh2 {[%clk 0:00:07]}  Qf2+ {[%clk 0:00:31]} 0-1


[Site "https://www.chess.com"]

[Event "Titled Tuesday Blitz August 1 Late 2023"]
[White "Bazilius, Augustinas"]
[Black "Kostiukov, Alexandr"]
[WhiteFideId "12832251"]
[BlackFideId "14108100"]
[WhiteElo "2426"]
[BlackElo "2350"]
[Result "0-1"]
[Round "11"]
[TimeControl "180+1"]
[Date "2023.08.01"]
[WhiteClock "0:00:01"]
[BlackClock "0:00:37"]
[Board "82"]

1. d4 {[%clk 0:02:59]}  g6 {[%clk 0:02:59]} 2. c4 {[%clk 0:02:58]}  Bg7 {[%clk 0:02:58]} 3. Nf3 {[%clk 0:02:55]}  d6 {[%clk 0:02:58]} 4. e4 {[%clk 0:02:54]}  e5 {[%clk 0:02:59]} 5. Nc3 {[%clk 0:02:51]}  exd4 {[%clk 0:02:58]} 6. Nxd4 {[%clk 0:02:51]}  Nc6 {[%clk 0:02:58]} 7. Be3 {[%clk 0:02:50]}  Nge7 {[%clk 0:02:58]} 8. Be2 {[%clk 0:02:49]}  O-O {[%clk 0:02:58]} 9. O-O {[%clk 0:02:46]}  f5 {[%clk 0:02:58]} 10. exf5 {[%clk 0:02:42]}  Bxd4 {[%clk 0:02:58]} 11. Bxd4 {[%clk 0:02:41]}  Nxf5 {[%clk 0:02:59]} 12. Be3 {[%clk 0:02:25]}  Nxe3 {[%clk 0:02:59]} 13. fxe3 {[%clk 0:02:26]}  Rxf1+ {[%clk 0:02:59]} 14. Qxf1 {[%clk 0:02:22]}  Be6 {[%clk 0:03:00]} 15. Ne4 {[%clk 0:02:11]}  Qe7 {[%clk 0:02:47]} 16. Qe1 {[%clk 0:02:05]}  Bf5 {[%clk 0:02:44]} 17. Nc3 {[%clk 0:02:00]}  Qxe3+ {[%clk 0:02:43]} 18. Kh1 {[%clk 0:02:00]}  Nd4 {[%clk 0:02:34]} 19. Bf1 {[%clk 0:01:25]}  Nc2 {[%clk 0:02:19]} 20. Qxe3 {[%clk 0:01:23]}  Nxe3 {[%clk 0:02:19]} 21. Be2 {[%clk 0:01:16]}  c6 {[%clk 0:02:13]} 22. Kg1 {[%clk 0:01:13]}  Re8 {[%clk 0:02:09]} 23. h3 {[%clk 0:01:09]}  h5 {[%clk 0:02:07]} 24. Kf2 {[%clk 0:01:09]}  Nc2 {[%clk 0:02:03]} 25. Rd1 {[%clk 0:01:07]}  Rd8 {[%clk 0:01:48]} 26. a3 {[%clk 0:01:07]}  c5 {[%clk 0:01:45]} 27. Nb5 {[%clk 0:01:06]}  Nd4 {[%clk 0:01:36]} 28. Nxd4 {[%clk 0:01:06]}  cxd4 {[%clk 0:01:37]} 29. Rxd4 {[%clk 0:01:07]}  Kf7 {[%clk 0:01:35]} 30. Bf3 {[%clk 0:01:02]}  b6 {[%clk 0:01:33]} 31. b4 {[%clk 0:00:59]}  Ke7 {[%clk 0:01:33]} 32. Bd5 {[%clk 0:00:58]}  Rf8 {[%clk 0:01:30]} 33. Ke2 {[%clk 0:00:52]}  g5 {[%clk 0:01:27]} 34. g4 {[%clk 0:00:46]}  hxg4 {[%clk 0:01:25]} 35. hxg4 {[%clk 0:00:47]}  Bg6 {[%clk 0:01:22]} 36. Bf3 {[%clk 0:00:38]}  Rh8 {[%clk 0:01:19]} 37. Ke3 {[%clk 0:00:31]}  Re8 {[%clk 0:01:00]} 38. Bc6 {[%clk 0:00:25]}  Rh8 {[%clk 0:00:57]} 39. Rd2 {[%clk 0:00:22]}  Rh3+ {[%clk 0:00:55]} 40. Bf3 {[%clk 0:00:22]}  Ke6 {[%clk 0:00:53]} 41. Re2 {[%clk 0:00:20]}  Ke5 {[%clk 0:00:52]} 42. Kf2+ {[%clk 0:00:07]}  Kf4 {[%clk 0:00:51]} 43. Bg2 {[%clk 0:00:03]}  Rd3 {[%clk 0:00:47]} 44. Re6 {[%clk 0:00:03]}  Rd2+ {[%clk 0:00:46]} 45. Kf1 {[%clk 0:00:03]}  Bd3+ {[%clk 0:00:44]} 46. Kg1 {[%clk 0:00:02]}  Bxc4 {[%clk 0:00:44]} 47. Re4+ {[%clk 0:00:02]}  Kg3 {[%clk 0:00:42]} 48. Rxc4 {[%clk 0:00:02]}  Rxg2+ {[%clk 0:00:41]} 49. Kf1 {[%clk 0:00:02]}  Rf2+ {[%clk 0:00:40]} 50. Kg1 {[%clk 0:00:02]}  Rf4 {[%clk 0:00:41]} 51. Rc3+ {[%clk 0:00:02]}  Kxg4 {[%clk 0:00:41]} 52. Rd3 {[%clk 0:00:03]}  Rf6 {[%clk 0:00:40]} 53. Rc3 {[%clk 0:00:04]}  Kf4 {[%clk 0:00:40]} 54. Rc7 {[%clk 0:00:05]}  g4 {[%clk 0:00:40]} 55. Rxa7 {[%clk 0:00:05]}  Kg3 {[%clk 0:00:40]} 56. Rc7 {[%clk 0:00:04]}  Re6 {[%clk 0:00:40]} 57. Rc3+ {[%clk 0:00:05]}  Kh4 {[%clk 0:00:39]} 58. a4 {[%clk 0:00:05]}  g3 {[%clk 0:00:38]} 59. Kg2 {[%clk 0:00:04]}  Re2+ {[%clk 0:00:38]} 60. Kf1 {[%clk 0:00:04]}  Rf2+ {[%clk 0:00:38]} 61. Kg1 {[%clk 0:00:05]}  Rb2 {[%clk 0:00:37]} 62. a5 {[%clk 0:00:03]}  Kh3 {[%clk 0:00:37]} 63. Rc1 {[%clk 0:00:02]}  b5 {[%clk 0:00:38]} 64. Rd1 {[%clk 0:00:01]}  Rxb4 {[%clk 0:00:38]} 65. a6 {[%clk 0:00:01]}  Ra4 {[%clk 0:00:38]} 66. Rb1 {[%clk 0:00:01]}  Rxa6 {[%clk 0:00:37]} 67. Kf1 {[%clk 0:00:01]}  Ra2 {[%clk 0:00:37]} 68. Rxb5 {[%clk 0:00:01]}  Ra1+ {[%clk 0:00:37]} 69. Ke2 {[%clk 0:00:02]}  g2 {[%clk 0:00:37]} 70. Rh5+ {[%clk 0:00:02]}  Kg4 {[%clk 0:00:37]} 71. Rh2 {[%clk 0:00:02]}  g1=Q {[%clk 0:00:37]} 72. Rh4+ {[%clk 0:00:01]}  Kxh4 {[%clk 0:00:37]} 0-1


[Site "https://www.chess.com"]

[Event "Titled Tuesday Blitz August 1 Late 2023"]
[White "Kubatko, Ivan"]
[Black "Silvestre, Christian"]
[WhiteFideId "24111473"]
[BlackFideId "30956269"]
[WhiteElo "2391"]
[BlackElo "2331"]
[Result "1-0"]
[Round "11"]
[TimeControl "180+1"]
[Date "2023.08.01"]
[WhiteClock "0:00:25"]
[BlackClock "0:00:00"]
[Board "87"]

1. e4 {[%clk 0:02:55]}  c6 {[%clk 0:02:59]} 2. d4 {[%clk 0:02:44]}  d5 {[%clk 0:02:59]} 3. exd5 {[%clk 0:02:45]}  cxd5 {[%clk 0:03:00]} 4. c4 {[%clk 0:02:45]}  dxc4 {[%clk 0:02:59]} 5. Bxc4 {[%clk 0:02:45]}  Qc7 {[%clk 0:02:59]} 6. Bb3 {[%clk 0:02:36]}  Bg4 {[%clk 0:02:58]} 7. Ba4+ {[%clk 0:02:23]}  Nd7 {[%clk 0:02:54]} 8. f3 {[%clk 0:02:19]}  Bf5 {[%clk 0:02:53]} 9. Nc3 {[%clk 0:02:18]}  Nf6 {[%clk 0:02:50]} 10. g4 {[%clk 0:02:15]}  Bg6 {[%clk 0:02:45]} 11. Nge2 {[%clk 0:02:12]}  e6 {[%clk 0:02:44]} 12. h4 {[%clk 0:02:10]}  h5 {[%clk 0:02:32]} 13. g5 {[%clk 0:02:04]}  Nd5 {[%clk 0:02:26]} 14. Nxd5 {[%clk 0:02:03]}  exd5 {[%clk 0:02:27]} 15. Nf4 {[%clk 0:01:54]}  Bf5 {[%clk 0:02:26]} 16. Kf2 {[%clk 0:01:43]}  Qd6 {[%clk 0:02:16]} 17. Re1+ {[%clk 0:01:39]}  Kd8 {[%clk 0:02:16]} 18. Ng2 {[%clk 0:01:12]}  Rc8 {[%clk 0:02:11]} 19. Bf4 {[%clk 0:01:11]}  Qb6 {[%clk 0:02:11]} 20. Bb3 {[%clk 0:01:11]}  Be6 {[%clk 0:01:55]} 21. Ne3 {[%clk 0:01:06]}  Bd6 {[%clk 0:01:50]} 22. Ng2 {[%clk 0:00:53]}  Re8 {[%clk 0:01:23]} 23. Bxd6 {[%clk 0:00:52]}  Qxd6 {[%clk 0:01:23]} 24. Qd2 {[%clk 0:00:52]}  g6 {[%clk 0:01:15]} 25. Qf4 {[%clk 0:00:45]}  Qb6 {[%clk 0:01:15]} 26. Kg3 {[%clk 0:00:44]}  Qc7 {[%clk 0:01:12]} 27. Rac1 {[%clk 0:00:43]}  Qxf4+ {[%clk 0:01:10]} 28. Nxf4 {[%clk 0:00:43]}  Rxc1 {[%clk 0:01:11]} 29. Rxc1 {[%clk 0:00:44]}  Nb6 {[%clk 0:01:11]} 30. Rc5 {[%clk 0:00:43]}  Nd7 {[%clk 0:01:05]} 31. Rb5 {[%clk 0:00:38]}  b6 {[%clk 0:01:03]} 32. Bxd5 {[%clk 0:00:33]}  a6 {[%clk 0:01:04]} 33. Rb3 {[%clk 0:00:31]}  Bxd5 {[%clk 0:01:03]} 34. Nxd5 {[%clk 0:00:32]}  b5 {[%clk 0:01:01]} 35. a4 {[%clk 0:00:31]}  bxa4 {[%clk 0:01:00]} 36. Ra3 {[%clk 0:00:28]}  Re2 {[%clk 0:01:00]} 37. Rxa4 {[%clk 0:00:25]}  Rxb2 {[%clk 0:01:00]} 38. Rxa6 {[%clk 0:00:25]}  Rd2 {[%clk 0:01:00]} 39. Ra8+ {[%clk 0:00:25]}  Nb8 {[%clk 0:00:00]} 40. Rxb8+ {[%clk 0:00:25]} 1-0


[Site "https://www.chess.com"]

[Event "Titled Tuesday Blitz August 1 Late 2023"]
[White "Vifleemskaia, Svetlana"]
[Black "Ai, Evan"]
[WhiteFideId "4129490"]
[BlackFideId "2094770"]
[WhiteElo "2381"]
[BlackElo "2321"]
[Result "0-1"]
[Round "11"]
[TimeControl "180+1"]
[Date "2023.08.01"]
[WhiteClock "0:00:00"]
[BlackClock "0:00:55"]
[Board "88"]

1. d4 {[%clk 0:02:57]}  d5 {[%clk 0:03:00]} 2. c4 {[%clk 0:02:56]}  e6 {[%clk 0:02:59]} 3. Nc3 {[%clk 0:02:55]}  Nf6 {[%clk 0:02:58]} 4. cxd5 {[%clk 0:02:56]}  exd5 {[%clk 0:02:58]} 5. Bg5 {[%clk 0:02:56]}  c6 {[%clk 0:02:57]} 6. e3 {[%clk 0:02:56]}  Nbd7 {[%clk 0:02:56]} 7. Bd3 {[%clk 0:02:56]}  Be7 {[%clk 0:02:56]} 8. Nge2 {[%clk 0:02:56]}  O-O {[%clk 0:02:56]} 9. Qc2 {[%clk 0:02:56]}  h6 {[%clk 0:02:56]} 10. Bh4 {[%clk 0:02:55]}  Re8 {[%clk 0:02:57]} 11. f3 {[%clk 0:02:55]}  c5 {[%clk 0:02:22]} 12. Qd2 {[%clk 0:02:51]}  cxd4 {[%clk 0:02:16]} 13. exd4 {[%clk 0:02:42]}  Nb6 {[%clk 0:02:11]} 14. Bf2 {[%clk 0:02:41]}  a6 {[%clk 0:02:05]} 15. O-O {[%clk 0:02:39]}  Bd6 {[%clk 0:02:04]} 16. Bg3 {[%clk 0:02:37]}  Nh5 {[%clk 0:01:52]} 17. Bxd6 {[%clk 0:02:32]}  Qxd6 {[%clk 0:01:53]} 18. g4 {[%clk 0:02:26]}  Nf6 {[%clk 0:01:52]} 19. Qf4 {[%clk 0:02:26]}  Qxf4 {[%clk 0:01:50]} 20. Nxf4 {[%clk 0:02:26]}  Bd7 {[%clk 0:01:50]} 21. Rfe1 {[%clk 0:02:24]}  g5 {[%clk 0:01:47]} 22. Ng2 {[%clk 0:02:16]}  Nc4 {[%clk 0:01:39]} 23. Bxc4 {[%clk 0:02:11]}  dxc4 {[%clk 0:01:40]} 24. d5 {[%clk 0:02:11]}  Rxe1+ {[%clk 0:01:34]} 25. Rxe1 {[%clk 0:02:10]}  Re8 {[%clk 0:01:35]} 26. Kf2 {[%clk 0:01:56]}  Rxe1 {[%clk 0:01:34]} 27. Kxe1 {[%clk 0:01:56]}  Kf8 {[%clk 0:01:34]} 28. Kd2 {[%clk 0:01:55]}  Ke7 {[%clk 0:01:34]} 29. Ke3 {[%clk 0:01:54]}  Kd6 {[%clk 0:01:34]} 30. Kd4 {[%clk 0:01:55]}  b5 {[%clk 0:01:33]} 31. Ne4+ {[%clk 0:01:54]}  Nxe4 {[%clk 0:01:32]} 32. fxe4 {[%clk 0:01:55]}  Bxg4 {[%clk 0:01:32]} 33. e5+ {[%clk 0:01:53]}  Kc7 {[%clk 0:01:29]} 34. Kc5 {[%clk 0:01:50]}  h5 {[%clk 0:01:22]} 35. Ne3 {[%clk 0:01:50]}  Bf3 {[%clk 0:01:19]} 36. a4 {[%clk 0:01:42]}  g4 {[%clk 0:01:08]} 37. axb5 {[%clk 0:01:41]}  axb5 {[%clk 0:01:08]} 38. Kxb5 {[%clk 0:01:30]}  h4 {[%clk 0:01:08]} 39. Kxc4 {[%clk 0:00:51]}  g3 {[%clk 0:01:05]} 40. hxg3 {[%clk 0:00:51]}  h3 {[%clk 0:01:04]} 41. Kc5 {[%clk 0:00:06]}  h2 {[%clk 0:00:56]} 42. d6+ {[%clk 0:00:00]}  Kd8 {[%clk 0:00:55]} 0-1


[Site "https://www.chess.com"]